bitfinex/quotes_ETHUSD_20240928
["timestamp","ask_amount","ask_price","bid_price","bid_amount"]
[1727513554010,1.56689105,2674.3,2674.1,3.73957]
[1727513554181,1.56689105,2674.2,2674.1,3.73957]
[1727513554383,1.17481634,2674.2,2674.1,3.73957]
[1727513554585,1.56689105,2674.3,2674.1,3.73957]
[1727513555206,1.56689105,2674.2,2674.0,7.15425652]
[1727513555406,1.95858929,2674.3,2674.0,3.73971]
[1727513555407,1.17410291,2674.1,2674.0,3.73971]
[1727513556081,1.17410291,2674.2,2674.0,3.41454652]
[1727513556282,1.17334734,2674.2,2674.1,3.73957]
[1727513556483,1.17334734,2674.3,2674.1,3.73957]
[1727513556710,1.56689105,2674.4,2674.2,3.73943]
[1727513556903,1.17335131,2674.3,2674.2,3.73943]
[1727513557212,1.17330794,2674.3,2674.2,3.73943]
[1727513557567,1.17330794,2674.3,2674.2,7.92247652]
[1727513558289,1.17330794,2674.4,2674.2,7.92247652]
[1727513558993,0.78173307,2674.3,2674.2,7.92247652]
[1727513560215,0.78173307,2674.3,2674.2,3.73943]
[1727513560415,0.78173307,2674.3,2674.2,7.15397652]
[1727513561487,1.17330794,2674.5,2674.3,3.73929]
[1727513561692,0.78145494,2674.4,2674.3,3.73929]
[1727513561890,1.17330794,2674.5,2674.4,3.73915]
[1727513562091,1.17330794,2674.5,2674.3,3.73921]
[1727513562315,0.78143329,2674.4,2674.3,3.73921]
[1727513563980,1.17330794,2674.5,2674.3,3.73921]
[1727513564180,0.78117259,2674.4,2674.3,7.47843]
[1727513564404,0.78117259,2674.4,2674.3,3.73921]
[1727513567896,0.78117259,2674.5,2674.3,3.73921]
[1727513568096,1.17330794,2674.6,2674.3,3.73921]
[1727513568097,0.78117259,2674.4,2674.3,3.73921]
[1727513568303,1.17330794,2674.6,2674.3,3.73921]
[1727513568304,0.78117259,2674.5,2674.3,3.73921]
[1727513569285,0.78117259,2674.5,2674.3,3.73927]
[1727513570021,0.78117259,2674.5,2674.1,3.73952]
[1727513570022,1.02547259,2674.4,2674.1,3.73952]
[1727513570180,0.78117259,2674.3,2674.1,3.73952]
[1727513570518,0.2443,2674.4,2674.0,3.73958]
[1727513570519,1.02547259,2674.4,2674.0,3.73958]
[1727513571121,0.78117259,2674.3,2674.0,3.73958]
[1727513574204,0.78117259,2674.3,2674.0,7.47921]
[1727513574550,0.78117259,2674.3,2674.0,3.73958]
[1727513574833,0.78117259,2674.3,2674.0,7.47921]
[1727513575923,0.78117259,2674.3,2674.0,3.73958]
[1727513576128,0.78117259,2674.3,2674.1,3.73956]
[1727513576307,1.41676044,2674.4,2674.1,3.73956]
[1727513576707,1.41676044,2674.4,2673.8,3.41454652]
[1727513576922,1.41676044,2674.4,2674.1,0.7692]
[1727513576923,0.39128785,2674.4,2674.1,0.7692]
[1727513577105,0.39128785,2674.4,2674.3,3.73929]
[1727513578117,0.39128785,2674.4,2674.2,3.73942]
[1727513578118,0.39128785,2674.4,2674.2,7.47884]
[1727513578312,0.39128785,2674.4,2674.2,3.73942]
[1727513578524,1.17246044,2674.4,2674.2,3.73942]
[1727513580342,1.17246044,2674.4,2674.2,3.73934]
[1727513580643,1.17246044,2674.4,2674.3,3.73929]
[1727513580805,1.17246044,2674.4,2674.2,3.73934]
[1727513581608,1.17246044,2674.4,2674.2,7.47869]
[1727513582009,1.17246044,2674.4,2674.3,3.73929]
[1727513582711,1.17246044,2674.4,2674.2,3.73934]
[1727513582940,1.17246044,2674.4,2674.2,7.4787]
[1727513584447,1.17246044,2674.4,2674.2,3.73934]
[1727513584649,1.17246044,2674.4,2674.3,3.73929]
[1727513586633,0.39128785,2674.4,2674.3,3.73929]
[1727513587453,0.39128785,2674.4,2674.2,3.7394]
[1727513587654,0.7804752,2674.3,2674.2,3.7394]
[1727513589719,0.78094135,2674.3,2674.2,3.7394]
[1727513590259,1.56459579,2674.4,2674.2,3.7394]
[1727513590463,1.17330794,2674.3,2673.7,4.50924]
[1727513590617,0.78101833,2674.0,2673.7,3.74003]
[1727513590821,0.78101833,2673.9,2673.7,3.74003]
[1727513591244,0.78101833,2673.8,2673.7,3.74003]
[1727513591448,0.78101833,2673.8,2673.7,5.31397709]
[1727513592758,0.7811039,2673.8,2673.7,5.31397709]
[1727513593450,1.17330794,2673.9,2673.7,5.31397709]
[1727513594353,1.17330794,2673.8,2673.7,5.31397709]
[1727513595449,1.56689105,2673.8,2673.7,5.31397709]
[1727513596359,1.95365269,2673.9,2673.7,5.31397709]
[1727513596517,1.56492344,2673.8,2673.7,5.31397709]
[1727513596727,1.56492344,2673.8,2673.7,1.57394709]
[1727513596922,2.00365275,2673.8,2673.3,3.74055]
[1727513597153,1.56483511,2673.4,2673.3,3.74055]
[1727513597336,2.58868323,2673.7,2673.4,3.74055]
[1727513597540,1.9563276,2673.5,2673.4,3.74055]
[1727513597963,2.58868323,2673.7,2673.4,3.74055]
[1727513598152,2.34438323,2673.6,2673.2,5.31466709]
[1727513598352,1.95672018,2673.4,2673.2,1.57394709]
[1727513598547,1.95672018,2673.4,2673.3,3.74069]
[1727513599670,0.2443,2673.3,2672.9,4.56202]
[1727513599963,1.56482303,2673.2,2673.0,5.31497709]
[1727513600164,1.95602488,2673.3,2673.1,3.74097]
[1727513600661,1.56427,2673.2,2673.1,3.74097]
[1727513601722,1.56427,2673.3,2673.0,1.57394709]
[1727513602061,1.17292936,2673.1,2673.0,5.31505709]
[1727513602663,1.17292936,2673.2,2673.1,3.74097]
[1727513602867,1.17292936,2673.2,2673.1,5.31491709]
[1727513603062,1.17292936,2673.2,2673.1,1.57394709]
[1727513604151,1.17292936,2673.2,2673.1,5.31491709]
[1727513604867,1.17292936,2673.2,2673.1,1.57394709]
[1727513605428,1.17292936,2673.2,2673.1,5.31491709]
[1727513605629,1.17292936,2673.3,2673.1,1.57394709]
[1727513605844,1.17292936,2673.2,2673.1,1.57394709]
[1727513606242,1.17292936,2673.3,2673.1,1.57394709]
[1727513606655,1.41722936,2673.3,2673.1,1.57394709]
[1727513607660,0.78105644,2673.2,2673.1,1.57394709]
[1727513608263,0.78105644,2673.2,2673.1,5.31491709]
[1727513608629,1.17292936,2673.3,2673.1,5.31491709]
[1727513608630,0.78105644,2673.3,2673.1,5.31491709]
[1727513609229,0.78105644,2673.2,2672.9,4.56205]
[1727513609424,0.78105644,2673.2,2673.0,1.57394709]
[1727513609862,0.78105644,2673.2,2673.1,4.49907]
[1727513610079,1.17292936,2673.3,2673.1,4.49907]
[1727513610080,0.78105644,2673.3,2673.1,4.49907]
[1727513610367,0.78105644,2673.3,2673.2,1.57394709]
[1727513610575,1.17292936,2673.3,2673.2,1.57394709]
[1727513610931,1.17292936,2673.3,2673.0,5.31501709]
[1727513611266,0.78060445,2673.2,2673.0,5.31501709]
[1727513611676,0.78060445,2673.2,2673.0,1.57394709]
[1727513611971,0.78060445,2673.2,2673.1,3.74097]
[1727513612266,0.78060445,2673.2,2673.0,9.05605709]
[1727513612639,0.78060445,2673.2,2673.0,5.31496709]
[1727513612973,0.78060445,2673.1,2673.0,1.57394709]
[1727513614742,0.78060445,2673.1,2672.9,0.8137]
[1727513614961,0.78060445,2673.1,2672.8,5.31522709]
[1727513617083,0.78060445,2673.1,2672.7,3.74152]
[1727513617285,4.52187445,2672.9,2672.4,4.55557]
[1727513617443,0.78060445,2672.6,2672.2,3.74221]
[1727513617785,0.78060445,2672.5,2672.2,7.48436]
[1727513617959,0.78060445,2672.5,2672.2,3.74215]
[1727513618277,0.29430006,2672.4,2672.1,3.74236]
[1727513618477,1.07490451,2672.4,2672.1,5.31630709]
[1727513618777,0.78060445,2672.5,2672.2,7.48433]
[1727513618980,0.78060445,2672.5,2672.4,3.74195]
[1727513619195,0.78060445,2672.6,2672.5,3.74181]
[1727513619346,0.78060445,2672.6,2672.5,5.31575709]
[1727513619541,1.17292936,2672.7,2672.5,5.31575709]
[1727513619542,0.78060445,2672.8,2672.6,3.74167]
[1727513619847,0.78060445,2673.0,2672.8,3.7413]
[1727513620375,0.78060445,2673.0,2672.9,3.74125]
[1727513620595,0.78060445,2673.0,2672.9,5.31519709]
[1727513620883,0.78060445,2673.4,2673.2,3.74074]
[1727513622659,3.74108,2673.1,2672.4,3.74182]
[1727513622906,1.02408518,2672.7,2672.2,3.7422]
[1727513623193,1.02408518,2672.7,2672.1,0.8103]
[1727513623194,0.77978518,2672.5,2672.1,0.8103]
[1727513623362,0.77978518,2672.4,2672.0,3.74247]
[1727513623891,0.77978518,2672.3,2672.0,3.74247]
[1727513624047,0.77978518,2672.3,2671.9,0.8103]
[1727513624471,0.77978518,2672.3,2672.0,3.74249]
[1727513626490,0.77978518,2672.3,2672.1,3.41253137]
[1727513626692,0.77978518,2672.5,2672.1,3.41253137]
[1727513627184,0.77978518,2672.5,2672.3,7.15460137]
[1727513627345,0.77978518,2672.6,2672.3,7.15460137]
[1727513627545,0.77978518,2672.6,2672.3,7.15450137]
[1727513627791,1.02408518,2672.7,2672.3,7.15450137]
[1727513628093,0.77978518,2672.6,2672.3,7.96480137]
[1727513628250,1.02408518,2672.7,2672.3,7.96480137]
[1727513628453,0.77978518,2672.7,2672.3,7.96480137]
[1727513630396,0.77978518,2672.7,2672.3,0.8103]
[1727513630594,0.77978518,2672.6,2672.3,0.8103]
[1727513631802,0.77978518,2672.6,2672.3,4.55229]
[1727513632709,0.77978518,2672.6,2672.4,3.74191]
[1727513632991,0.77978518,2672.7,2672.4,3.74191]
[1727513633213,0.77978518,2672.6,2672.3,7.96490137]
[1727513633369,0.77978518,2672.7,2672.3,4.22283137]
[1727513633574,0.77978518,2672.6,2672.4,3.74193]
[1727513633804,0.77978518,2672.7,2672.4,3.74193]
[1727513634114,0.77978518,2672.6,2672.4,3.74193]
[1727513634420,0.77978518,2672.7,2672.4,3.74193]
[1727513634569,0.77978518,2672.6,2672.4,3.74193]
[1727513634771,0.77978518,2672.6,2672.3,7.96491137]
[1727513636106,0.77978518,2672.6,2672.4,3.74194]
[1727513636678,0.77978518,2672.5,2672.4,3.74194]
[1727513637308,0.77978518,2672.6,2672.4,3.74194]
[1727513638075,0.77978518,2672.6,2672.5,3.74181]
[1727513638272,0.77978518,2672.8,2672.7,0.8206]
[1727513638616,1.17105351,2672.9,2672.7,7.97458137]
[1727513638914,1.17105351,2672.9,2672.8,3.74139]
[1727513638915,0.39126833,2672.9,2672.8,3.74139]
[1727513639216,0.77978518,2673.2,2673.1,3.74097]
[1727513639413,0.77978518,2673.3,2673.1,3.74097]
[1727513639586,0.77978518,2673.2,2673.1,3.74097]
[1727513640187,0.77978518,2673.3,2673.1,4.56157]
[1727513640389,0.77978518,2673.3,2673.2,7.15336137]
[1727513640790,0.78210843,2673.4,2673.3,3.74069]
[1727513641120,1.16967777,2673.4,2673.3,3.74069]
[1727513641416,1.16967777,2673.5,2673.3,3.74069]
[1727513641627,1.16967777,2673.4,2673.3,3.74069]
[1727513642399,1.16967777,2673.5,2673.3,3.74069]
[1727513642605,1.16967777,2673.4,2673.3,3.74069]
[1727513646599,0.78218123,2673.4,2673.3,3.74069]
[1727513646813,0.78218123,2673.4,2673.3,4.91215414]
[1727513647113,1.16967777,2673.6,2673.4,3.74055]
[1727513647318,0.78218016,2673.5,2673.4,7.15308137]
[1727513647525,0.78218016,2673.6,2673.5,3.74041]
[1727513647818,1.16967777,2673.7,2673.6,3.74027]
[1727513647979,1.16967777,2673.7,2673.6,7.15280137]
[1727513647980,0.78224043,2673.7,2673.6,7.15280137]
[1727513648188,0.78224043,2673.7,2673.6,8.44483476]
[1727513648502,0.78224043,2673.8,2673.7,3.74013]
[1727513648703,0.78224043,2673.8,2673.7,5.77924048]
[1727513648887,0.78224043,2673.9,2673.8,3.73999]
[1727513649089,0.78224043,2674.0,2673.8,3.41253137]
[1727513649288,0.78224043,2674.0,2673.9,3.73985]
[1727513649726,1.16967777,2674.2,2674.1,3.73957]
[1727513649727,0.73224043,2674.2,2674.1,3.73957]
[1727513650227,0.73224043,2674.2,2674.0,3.41253137]
[1727513650382,0.73224043,2674.2,2673.8,4.36445442]
[1727513650587,1.16967777,2674.2,2673.8,3.7399]
[1727513650813,1.16967777,2674.2,2673.7,4.56064]
[1727513650814,1.16967777,2674.1,2673.7,4.56064]
[1727513651015,1.16967777,2673.9,2673.6,3.74023]
[1727513651231,1.16967777,2673.8,2673.5,3.74032]
[1727513651431,0.05000006,2673.7,2673.1,4.50503]
[1727513651639,1.41397777,2673.6,2673.2,1.122093]
[1727513651786,1.41397777,2673.6,2672.9,3.74119]
[1727513651787,3.79050006,2673.5,2672.9,4.50529]
[1727513651987,4.91017777,2673.5,2672.9,4.50529]
[1727513652226,1.16967777,2673.4,2672.9,6.49893495]
[1727513652532,4.91023777,2673.4,2672.9,6.49893495]
[1727513652732,4.91023777,2673.4,2672.9,9.47599495]
[1727513652904,1.16967777,2673.4,2672.9,9.47599495]
[1727513653606,1.16967777,2673.4,2673.0,3.7411]
[1727513654350,0.2443,2673.3,2672.7,4.50557]
[1727513654520,0.2443,2673.3,2672.6,3.74162]
[1727513654521,4.91058777,2673.2,2672.6,3.74162]
[1727513654723,1.16967777,2673.0,2672.6,3.74162]
[1727513655724,1.16967777,2673.0,2672.7,3.74152]
[1727513656662,1.16967777,2672.9,2672.5,3.74174]
[1727513656874,1.16967777,2672.9,2672.7,3.74152]
[1727513657061,1.16967777,2673.0,2672.7,3.74144]
[1727513657262,1.16967777,2673.0,2672.8,3.74137]
[1727513657445,1.16967777,2673.0,2672.7,3.74144]
[1727513657620,1.16967777,2673.0,2672.8,3.74135]
[1727513657826,1.16967777,2673.2,2672.9,10.89486137]
[1727513658020,1.16967777,2673.2,2672.9,7.15369137]
[1727513658937,1.16967777,2673.3,2673.0,3.74109]
[1727513659150,1.16967777,2673.3,2673.1,3.74094]
[1727513659524,1.41277777,2673.4,2673.1,3.74094]
[1727513659864,0.780116,2673.3,2673.1,3.74088]
[1727513662036,0.780116,2673.2,2673.1,3.74088]
[1727513662677,0.780116,2673.3,2673.1,3.74088]
[1727513662962,0.780116,2673.2,2673.1,3.74088]
[1727513663460,1.94979377,2673.3,2673.1,3.74088]
[1727513663762,0.780116,2673.2,2673.1,3.74088]
[1727513664318,0.780116,2673.2,2673.0,3.74109]
[1727513666829,0.780116,2673.3,2673.0,3.74109]
[1727513667083,0.780116,2673.2,2673.0,3.74109]
[1727513668725,1.16967777,2673.3,2673.1,4.17663137]
[1727513668928,0.78014522,2673.4,2673.3,3.74069]
[1727513669082,0.78014522,2673.4,2673.3,3.41253137]
[1727513669285,1.56081905,2673.6,2673.4,3.74055]
[1727513670008,0.7803123,2673.5,2673.4,3.74055]
[1727513671103,1.17145358,2673.6,2673.4,4.82992614]
[1727513671549,0.7803123,2673.5,2673.4,4.82992614]
[1727513671732,0.7803123,2673.5,2673.4,3.74055]
[1727513677607,1.16967777,2673.6,2673.4,3.74055]
[1727513678260,0.78125658,2673.5,2673.4,3.74055]
[1727513678607,1.16967777,2673.6,2673.4,3.74055]
[1727513679551,1.16967777,2673.5,2673.4,3.74055]
[1727513679908,0.78146029,2673.5,2673.4,3.74055]
[1727513680253,0.78146029,2673.5,2673.4,4.82992614]
[1727513680913,0.78146029,2673.5,2673.4,5.60422614]
[1727513683052,0.78146029,2673.7,2673.5,4.51471]
[1727513683349,1.56078642,2673.9,2673.5,4.51471]
[1727513683350,0.78146029,2673.8,2673.7,3.74013]
[1727513683729,0.78146029,2673.8,2673.7,4.51443]
[1727513683925,0.78146029,2673.9,2673.8,3.73999]
[1727513684257,1.55957037,2674.0,2673.9,3.73985]
[1727513684410,1.56384102,2674.1,2674.0,3.73971]
[1727513684951,2.34485565,2674.2,2674.0,3.73971]
[1727513685252,1.56403846,2674.1,2674.0,3.73971]
[1727513685553,1.56381655,2674.1,2674.0,3.73971]
[1727513685757,1.56380874,2674.1,2673.9,7.47961]
[1727513685921,1.56382889,2674.1,2673.9,7.47952]
[1727513686129,1.56382889,2674.0,2673.9,3.73976]
[1727513686308,1.56382889,2674.1,2673.9,3.73976]
[1727513686513,1.56382889,2674.1,2673.9,3.73973]
[1727513686823,1.95527027,2674.2,2674.1,3.73957]
[1727513687017,1.56454419,2674.2,2674.1,7.15210137]
[1727513687215,1.17310281,2674.3,2674.2,3.73943]
[1727513689258,1.56382889,2674.4,2674.2,7.47886]
[1727513689259,1.17310281,2674.4,2674.2,7.47886]
[1727513689555,0.78155869,2674.3,2674.2,7.47886]
[1727513689855,0.78155869,2674.3,2674.2,8.76660428]
[1727513690557,0.78155869,2674.4,2674.3,3.73929]
[1727513690725,0.78155869,2674.4,2674.3,7.15182137]
[1727513690928,0.78155869,2674.6,2674.4,4.56345]
[1727513691159,0.78155869,2674.7,2674.6,3.73887]
[1727513691467,1.17310281,2674.8,2674.7,3.73873]
[1727513691651,1.56382889,2674.9,2674.5,3.73889]
[1727513691852,0.78117385,2674.6,2674.4,3.73913]
[1727513692151,0.78117385,2674.6,2674.1,3.41253137]
[1727513692152,1.02407193,2674.5,2674.1,3.73949]
[1727513692356,0.78094294,2674.4,2674.1,3.73949]
[1727513694420,0.78094294,2674.3,2674.1,3.73949]
[1727513694822,0.78094294,2674.2,2674.1,3.73949]
[1727513695257,1.1717685,2674.4,2674.1,3.73949]
[1727513695258,0.78094294,2674.3,2674.1,3.73949]
[1727513696223,0.78094294,2674.2,2674.1,3.73949]
[1727513697622,0.78094294,2674.3,2674.1,3.73949]
[1727513699366,0.78094294,2674.3,2673.9,3.73978]
[1727513699668,0.78094294,2674.2,2674.0,3.73963]
[1727513700224,0.78094294,2674.2,2673.9,3.73977]
[1727513700566,0.78094294,2674.2,2674.1,3.73957]
[1727513700724,0.78094294,2674.3,2674.1,3.73957]
[1727513700928,0.78094294,2674.2,2674.1,3.73957]
[1727513701839,0.78094294,2674.3,2674.2,4.56373]
[1727513702032,0.78094294,2674.6,2674.4,3.73915]
[1727513702234,1.1717685,2674.7,2674.6,3.73887]
[1727513702235,0.78094294,2674.7,2674.6,3.73887]
[1727513702964,0.78094294,2674.7,2674.5,3.73901]
[1727513703463,0.78094294,2674.7,2674.5,3.73894]
[1727513703660,0.78094294,2674.7,2674.5,7.47787]
[1727513704064,0.78094294,2674.7,2674.5,3.73893]
[1727513705334,0.78094294,2674.6,2674.5,3.73893]
[1727513707044,0.78094294,2674.6,2674.3,7.47839]
[1727513707244,0.78094294,2674.6,2674.4,3.73914]
[1727513707635,0.78094294,2674.5,2674.4,3.73914]
[1727513711872,1.1717685,2674.6,2674.4,3.73914]
[1727513713365,1.1717685,2674.5,2674.4,3.73914]
[1727513719185,1.56382889,2674.6,2674.5,3.73901]
[1727513719355,0.78192624,2674.7,2674.6,6.73887]
[1727513719557,0.78192624,2674.9,2674.7,3.73873]
[1727513719758,1.17288936,2674.9,2674.8,3.73859]
[1727513719997,1.17288936,2675.0,2674.8,3.73859]
[1727513720506,0.78185907,2674.9,2674.8,3.73859]
[1727513720668,1.17288936,2675.0,2674.8,3.73859]
[1727513720870,1.17288936,2674.9,2674.7,3.73873]
[1727513721069,1.17288936,2674.8,2674.7,3.73873]
[1727513721688,1.56382889,2674.9,2674.7,3.73873]
[1727513722585,1.56382889,2674.8,2674.6,3.73886]
[1727513722788,1.17282361,2674.7,2674.6,3.73886]
[1727513723660,1.56382889,2674.8,2674.5,4.55304]
[1727513723883,1.17293596,2674.6,2674.5,3.73894]
[1727513724100,1.56382889,2674.7,2674.5,3.73894]
[1727513724280,1.56382889,2674.6,2674.5,7.47788]
[1727513724455,1.56382889,2674.7,2674.5,7.47788]
[1727513724655,1.56382889,2674.6,2674.5,3.73894]
[1727513725275,1.56382889,2674.6,2674.5,3.73901]
[1727513725500,1.56382889,2674.7,2674.6,3.73887]
[1727513725664,1.95579367,2674.8,2674.6,3.73887]
[1727513726091,1.95579367,2674.7,2674.6,3.73887]
[1727513726291,1.95579367,2674.7,2674.4,7.47807]
[1727513726457,1.17329609,2674.5,2674.4,7.47807]
[1727513726661,1.56439479,2674.5,2674.4,3.73902]
[1727513727148,1.95579367,2674.6,2674.4,3.73902]
[1727513727511,1.56471957,2674.5,2674.4,3.73902]
[1727513727711,1.95579367,2674.6,2674.4,3.73902]
[1727513727911,1.56473429,2674.5,2674.4,3.73902]
[1727513728137,1.95579367,2674.5,2674.4,3.73902]
[1727513731046,1.95579367,2674.5,2674.3,3.73928]
[1727513731365,1.95711464,2674.5,2674.3,3.73928]
[1727513731518,1.95711464,2674.5,2674.3,7.47843]
[1727513731721,1.95711464,2674.4,2674.3,3.73921]
[1727513735660,1.95711464,2674.4,2674.2,7.15195137]
[1727513735837,1.95711464,2674.4,2674.3,3.73929]
[1727513739755,1.95823745,2674.4,2674.2,7.94855651]
[1727513739960,1.95823745,2674.4,2674.3,3.73929]
[1727513740468,1.95823745,2674.4,2674.3,5.31283576]
[1727513744590,1.95935154,2674.4,2674.3,6.07753576]
[1727513744792,1.56750782,2674.4,2674.3,7.13889185]
[1727513745028,1.56755722,2674.4,2674.3,7.13889185]
[1727513745229,1.95935154,2674.5,2674.3,7.13889185]
[1727513745489,1.95956759,2674.5,2674.4,3.73915]
[1727513745700,1.9596315,2674.5,2674.4,3.73915]
[1727513745908,2.35122185,2674.7,2674.6,3.73887]
[1727513746112,1.95971575,2674.7,2674.6,5.31241576]
[1727513746841,1.56773219,2674.7,2674.6,6.07711576]
[1727513747163,2.35122185,2675.0,2674.7,3.73873]
[1727513747349,2.35122185,2675.0,2674.8,5.31211576]
[1727513748614,1.95960293,2674.9,2674.8,5.31211576]
[1727513748958,2.35122185,2675.1,2674.8,5.31211576]
[1727513749123,1.95943581,2674.9,2674.8,5.31211576]
[1727513749684,1.95933323,2674.9,2674.8,5.31211576]
[1727513750016,2.35119988,2675.1,2674.8,5.31211576]
[1727513750217,2.35119988,2675.0,2674.8,5.31211576]
[1727513751215,2.35119988,2675.1,2674.8,5.31211576]
[1727513752355,1.95870112,2674.9,2674.8,5.31211576]
[1727513752545,2.35119988,2675.1,2674.8,5.31211576]
[1727513753937,1.95824137,2674.9,2674.8,5.31205576]
[1727513754153,1.46249983,2675.2,2674.9,3.73844]
[1727513754461,1.95825572,2675.0,2674.9,3.73844]
[1727513754869,2.35004839,2675.2,2674.9,3.73844]
[1727513756466,1.95772915,2675.0,2674.9,3.73844]
[1727513756641,1.95775577,2675.0,2674.9,3.73844]
[1727513757232,1.95775577,2675.0,2674.9,4.64349658]
[1727513757428,3.73777,2675.4,2675.0,3.73831]
[1727513757429,1.56626267,2675.1,2675.0,3.73831]
[1727513757642,1.56626267,2675.2,2675.1,4.51397]
[1727513757842,1.56626267,2675.3,2675.2,3.73803]
[1727513758047,1.56626267,2675.3,2675.2,5.31157576]
[1727513758247,1.56626267,2675.4,2675.3,3.73789]
[1727513758427,1.56626267,2675.4,2675.3,4.78027059]
[1727513761201,1.56626267,2675.4,2675.1,5.11243013]
[1727513761364,1.95716975,2675.5,2675.3,1.57354576]
[1727513761365,2.20026975,2675.5,2675.3,1.57354576]
[1727513761552,1.95716975,2675.4,2675.3,1.57354576]
[1727513762201,2.20026975,2675.5,2675.3,1.57354576]
[1727513762394,1.95642123,2675.4,2675.3,1.57354576]
[1727513762701,2.19952123,2675.5,2675.3,1.57354576]
[1727513762866,1.95614296,2675.4,2675.3,1.57354576]
[1727513763394,2.59047156,2675.5,2674.9,1.57354576]
[1727513763592,2.59047156,2675.5,2674.9,5.31189576]
[1727513763593,1.1735453,2675.0,2674.9,5.31189576]
[1727513763780,1.56472707,2675.1,2674.9,5.31189576]
[1727513763976,1.17350416,2675.0,2674.9,5.31189576]
[1727513764801,1.56472707,2675.1,2674.9,1.57354576]
[1727513765090,1.17349934,2675.0,2674.9,1.57354576]
[1727513765568,1.56472707,2675.1,2674.9,1.57354576]
[1727513765772,1.17345629,2675.0,2674.9,1.57354576]
[1727513766162,1.56472707,2675.1,2674.9,1.57354576]
[1727513766786,1.17346355,2675.0,2674.9,1.57354576]
[1727513767182,1.56472707,2675.1,2674.9,1.57354576]
[1727513767506,1.17343363,2675.0,2674.9,1.57354576]
[1727513767793,1.56472707,2675.1,2674.9,5.31198576]
[1727513768367,1.56472707,2675.1,2674.9,1.57354576]
[1727513768580,1.56472707,2675.0,2674.9,5.31196576]
[1727513769201,1.56472707,2675.1,2674.9,5.31196576]
[1727513769704,1.17339156,2675.0,2674.9,5.31196576]
[1727513769862,1.17345713,2675.0,2674.9,5.31196576]
[1727513770068,1.80782707,2675.0,2673.6,12.00425159]
[1727513770370,0.78213754,2674.3,2674.1,3.73949]
[1727513770567,0.78213754,2674.2,2674.1,5.31303576]
[1727513770796,1.17336015,2674.2,2674.1,5.31303576]
[1727513772175,1.17336015,2674.2,2674.1,3.73949]
[1727513773304,1.17336015,2674.3,2674.2,3.73943]
[1727513773520,1.17336015,2674.4,2674.2,3.73943]
[1727513774117,1.17342965,2674.4,2674.3,4.53089]
[1727513774492,1.17341847,2674.4,2674.3,4.53089]
[1727513777016,1.17410443,2674.4,2674.3,4.53089]
[1727513783429,1.17410443,2674.5,2674.3,4.53089]
[1727513784407,1.17410443,2674.4,2674.3,4.53089]
[1727513785223,1.17410443,2674.4,2674.3,0.7916]
[1727513785427,1.17410443,2674.4,2674.1,11.68084584]
[1727513785626,0.78277809,2674.3,2674.1,11.68084584]
[1727513786020,0.78277809,2674.3,2674.2,3.73943]
[1727513786528,0.78277809,2674.3,2674.1,7.94135584]
[1727513786831,0.78293295,2674.2,2674.1,3.73949]
[1727513787140,1.17410443,2674.3,2674.1,3.73949]
[1727513787341,1.17410443,2674.2,2674.1,3.73949]
[1727513787650,1.17410443,2674.2,2674.1,7.47897]
[1727513787819,1.17410443,2674.3,2674.1,7.47897]
[1727513788015,1.17410443,2674.3,2674.2,3.73943]
[1727513791104,1.17410443,2674.4,2674.2,3.73943]
[1727513791320,1.17410443,2674.4,2674.2,4.51993]
[1727513791543,1.17418097,2674.4,2674.3,3.73929]
[1727513792309,1.17418097,2674.4,2674.3,5.31288892]
[1727513794646,1.17418097,2674.4,2674.3,1.57359892]
[1727513795533,1.17418097,2674.4,2674.3,5.31288892]
[1727513798855,1.17418097,2674.5,2674.4,3.73915]
[1727513799184,0.78279702,2674.5,2674.4,3.81392588]
[1727513799374,0.78279702,2674.5,2674.4,4.59442165]
[1727513799559,0.78279702,2674.5,2674.4,5.683479]
[1727513799957,0.78279702,2674.5,2674.4,5.60870735]
[1727513800358,0.78279702,2674.5,2674.4,4.51965]
[1727513805344,1.17418097,2674.6,2674.5,3.73901]
[1727513805576,1.17418097,2674.6,2674.5,5.31260892]
[1727513807501,1.5644802,2674.7,2674.5,5.31260892]
[1727513807766,1.5644802,2674.7,2674.5,9.05153892]
[1727513808295,1.17523119,2674.6,2674.5,5.31252892]
[1727513808459,1.17523119,2674.6,2674.5,6.29573281]
[1727513808460,1.17559216,2674.6,2674.5,6.29573281]
[1727513808665,1.5644802,2674.7,2674.6,3.73887]
[1727513808860,0.78382778,2674.7,2674.6,8.68312585]
[1727513809059,0.78382778,2674.9,2674.8,3.73859]
[1727513809258,0.78382778,2674.9,2674.8,5.27327075]
[1727513809471,1.5644802,2675.2,2674.8,5.27327075]
[1727513809472,0.78382778,2675.1,2674.9,4.51895]
[1727513809671,0.78382778,2675.2,2675.1,7.51867]
[1727513809875,0.78385014,2675.3,2675.2,6.73803]
[1727513810064,0.78385014,2675.3,2675.2,8.31162892]
[1727513810264,0.78385014,2675.3,2675.2,9.75371349]
[1727513810564,1.17565917,2675.5,2675.3,3.73789]
[1727513810764,1.17565917,2675.5,2675.4,1.57359892]
[1727513811508,1.17565917,2675.5,2675.4,5.31134892]
[1727513811702,1.5644802,2675.6,2675.5,3.73761]
[1727513811866,1.5644802,2675.6,2675.5,5.31120892]
[1727513812072,1.17475901,2675.6,2675.5,5.31120892]
[1727513812268,1.17476442,2675.6,2675.5,5.31120892]
[1727513812518,1.17437252,2675.6,2675.5,5.31120892]
[1727513812982,1.5644802,2675.7,2675.5,5.31120892]
[1727513813191,1.17435146,2675.6,2675.5,5.31120892]
[1727513814882,1.17435146,2675.7,2675.5,5.31120892]
[1727513815086,1.17435146,2675.6,2675.5,5.31120892]
[1727513815299,1.17435146,2675.7,2675.5,5.31120892]
[1727513815616,0.78235068,2675.6,2675.5,5.99442518]
[1727513816370,0.78235068,2675.7,2675.5,5.99442518]
[1727513816571,1.41745146,2675.8,2675.5,5.99442518]
[1727513816572,0.78235068,2675.6,2675.5,5.99442518]
[1727513816880,0.78235068,2675.6,2675.5,5.31120892]
[1727513818108,0.78235068,2675.7,2675.5,5.31120892]
[1727513818275,0.78235068,2675.6,2675.5,5.31120892]
[1727513818471,0.78235068,2675.7,2675.5,6.21610481]
[1727513819075,0.78235068,2675.6,2675.5,6.21610481]
[1727513819413,0.78235068,2676.0,2675.7,3.73733]
[1727513819707,1.17435146,2676.1,2675.9,1.57359892]
[1727513820014,1.17435146,2676.0,2675.9,1.57359892]
[1727513820313,1.8075802,2676.2,2675.9,1.57359892]
[1727513820314,1.17435146,2676.1,2675.9,1.57359892]
[1727513820518,1.17435146,2676.0,2675.9,1.57359892]
[1727513821514,1.17435146,2676.0,2675.6,1.39131048]